fUST/lending_fUST_20250607
["ID","MTS","AMOUNT","RATE_DAILY","PERIOD"]
[364901983,1749287439066,-440.0,0.00019726,2]
[364901985,1749287439076,-440.0,0.00019726,2]
[364901987,1749287439086,-1662.03,0.00019726,2]
[364901989,1749287439095,-1231.5962295,0.00019728,2]
[364901991,1749287439104,-150.00723241,0.00019853,2]
[364901993,1749287439115,-1231.5962295,0.00019934,2]
[364901995,1749287439124,-358.81,0.0002,14]
[364901997,1749287439133,-151.0,0.0002,2]
[364901999,1749287439143,-151.0,0.0002,2]
[364902001,1749287439153,-151.0,0.0002,2]
[364902004,1749287439164,-151.0,0.0002,2]
[364902006,1749287439174,-151.0,0.0002,2]
[364902008,1749287439185,-440.0,0.0002,2]
[364902010,1749287439194,-440.0,0.0002,2]
[364902011,1749287439204,-440.0,0.0002,2]
[364902013,1749287439214,-918.47,0.0002,2]
[364902016,1749287439224,-440.0,0.0002,2]
[364902018,1749287439234,-180.04,0.0002,2]
[364902020,1749287439244,-6104.03,0.0002,2]
[364902022,1749287439254,-440.0,0.0002,2]
[364902024,1749287439263,-545.14,0.0002,2]
[364902026,1749287439274,-440.0,0.0002,2]
[364902028,1749287439285,-440.0,0.0002,2]
[364902030,1749287439295,-440.0,0.0002,2]
[364902032,1749287439305,-440.0,0.0002,2]
[364902034,1749287439315,-440.0,0.0002,2]
[364902036,1749287439325,-440.0,0.0002,2]
[364902038,1749287439335,-440.0,0.0002,2]
[364902040,1749287439347,-573.06,0.0002,2]
[364902042,1749287439356,-440.0,0.0002,2]
[364902044,1749287439366,-443.61,0.0002,2]
[364902046,1749287439376,-440.0,0.0002,2]
[364902048,1749287439387,-440.0,0.0002,2]
[364902050,1749287439397,-440.0,0.0002,2]
[364902052,1749287439408,-440.0,0.0002,2]
[364902054,1749287439418,-1662.03,0.0002,2]
[364902056,1749287439428,-5000.0,0.00020102,2]
[364902058,1749287439437,-420.0,0.00020104,2]
[364902060,1749287439447,-1009.344733,0.00020136,3]
[364902062,1749287439457,-1231.5962295,0.00020141,2]
[364902064,1749287439466,-160.0,0.00020149,2]
[364902066,1749287439476,-160.0,0.00020152,2]
[364902068,1749287439485,-160.0,0.00020152,2]
[364902070,1749287439496,-423.90693687,0.00020152,2]
[364902072,1749287439506,-229.56495552,0.00020152,2]
[364902074,1749287439516,-160.0,0.00020152,2]
[364902076,1749287439526,-3061.42016224,0.00020152,2]
[364902418,1749287443345,-504.52,0.00019725,2]
[364902419,1749287443356,-280.56035452,0.00019999,2]
[364902931,1749287448513,-223.95964548,0.00019999,2]
[364902933,1749287448523,-213.01382694,0.00020152,2]
[364902935,1749287448533,-160.0,0.00020152,2]
[364902937,1749287448543,-834.52263295,0.00020152,2]
[364902939,1749287448552,-315.08178181,0.00020152,2]
[364902941,1749287448562,-667.75033213,0.00020173,2]
[364902943,1749287448572,-155.986,0.00020177,2]
[364902945,1749287448581,-78.67456485,0.00020187,2]
[364902947,1749287448594,-106.62060015,0.00020187,2]
[364902949,1749287448604,-504.52,0.00020199,2]
[364902951,1749287448614,-242.07,0.0002024,3]
[364902953,1749287448624,-842.5625,0.0002025,2]
[364902955,1749287448634,-476.82390562,0.0002025,3]
[364905161,1749287714804,3000.0,0.00025479,120]
[364905162,1749287812582,2058.549,0.00025479,120]
[364905163,1749287875679,532.0,0.00025,120]
[364905164,1749287898364,1000.0,0.000253,120]
[364905165,1749288101568,166.765648,0.00013699,2]
[364905173,1749288447131,-300.0,0.0001821,2]
[364905174,1749288447163,-500.0,0.0001821,2]
[364905175,1749288447190,-173.02863845,0.0001821,2]
[364905206,1749288632329,-150.00723241,0.00018123,2]
[364905207,1749288632344,-373.39276759,0.00018209,2]
[364905246,1749288638256,-236.722876,0.00018061,2]
[364905248,1749288638266,-500.0,0.00018208,2]
[364905250,1749288638276,-83.82390861,0.00018208,2]
[364905255,1749288638316,-412.0782749,0.00018208,2]
[364905257,1749288638325,-500.0,0.00018208,2]
[364905259,1749288638335,-500.0,0.00018208,2]
[364905261,1749288638346,-500.0,0.00018208,2]
[364905263,1749288638356,-500.0,0.00018208,2]
[364905265,1749288638366,-500.0,0.00018208,2]
[364905267,1749288638375,-341.60379786,0.00018208,2]
[364905269,1749288638388,-158.39620214,0.00018208,2]
[364905271,1749288638397,-500.0,0.00018208,2]
[364905274,1749288638407,-500.0,0.00018208,2]
[364905277,1749288638417,-500.0,0.00018208,2]
[364905280,1749288638427,-500.0,0.00018208,2]
[364905283,1749288638436,-500.0,0.00018208,2]
[364905286,1749288638446,-500.0,0.00018208,2]
[364905288,1749288638455,-500.0,0.00018208,2]
[364905290,1749288638465,-500.0,0.00018208,2]
[364905292,1749288638475,-500.0,0.00018208,2]
[364905294,1749288638485,-500.0,0.00018208,2]
[364905296,1749288638495,-500.0,0.00018208,2]
[364905298,1749288638505,-500.0,0.00018208,2]
[364905300,1749288638515,-500.0,0.00018208,2]
[364905302,1749288638525,-500.0,0.00018208,2]
[364905304,1749288638535,-500.0,0.00018208,2]
[364905306,1749288638544,-500.0,0.00018208,2]
[364905308,1749288638554,-500.0,0.00018208,2]
[364905310,1749288638564,-500.0,0.00018208,2]
[364905312,1749288638574,-371.70295266,0.00018208,2]
[364905314,1749288638584,-500.0,0.00018208,2]
[364905316,1749288638594,-500.0,0.00018208,2]
[364905318,1749288638603,-500.0,0.00018208,2]
[364905320,1749288638613,-500.0,0.00018208,2]
[364905322,1749288638623,-500.0,0.00018208,2]
[364905324,1749288638632,-500.0,0.00018208,2]
[364905326,1749288638642,-500.0,0.00018208,2]
[364905328,1749288638651,-500.0,0.00018208,2]
[364905330,1749288638661,-631.87710625,0.00018208,2]
[364905332,1749288638671,-488.58632572,0.00018208,2]
[364905334,1749288638681,-500.0,0.00018208,2]
[364905335,1749288638691,-500.0,0.00018208,2]
[364905338,1749288638700,-500.0,0.00018208,2]
[364905340,1749288638710,-500.0,0.00018208,2]
[364905341,1749288638720,-500.0,0.00018208,2]
[364905343,1749288638730,-500.0,0.00018208,2]
[364905345,1749288638740,-24900.0,0.00018216,2]
[364905347,1749288638749,-184.046707,0.00018223,2]
[364905349,1749288638759,-2488.52,0.00019058,2]
[364905351,1749288638769,-440.0,0.00019178,2]
[364905354,1749288638779,-440.0,0.00019178,2]
[364905356,1749288638788,-1385.03,0.00019178,2]
[364905358,1749288638798,-440.0,0.00019178,2]
[364905360,1749288638807,-440.0,0.00019178,2]
[364905361,1749288638817,-440.0,0.00019178,2]
[364905364,1749288638828,-430.0,0.00019178,2]
[364905366,1749288638839,-440.0,0.00019178,2]
[364905368,1749288638849,-430.0,0.00019178,2]
[364905370,1749288638858,-188.70873862,0.00019178,2]
[364905372,1749288638868,-430.0,0.00019178,2]
[364905374,1749288638877,-430.0,0.00019178,2]
[364905376,1749288638887,-440.0,0.00019178,2]
[364905378,1749288638896,-430.0,0.00019178,2]
[364905379,1749288638906,-440.0,0.00019178,2]
[364905382,1749288638916,-440.0,0.00019178,2]
[364905384,1749288638926,-430.0,0.00019178,2]
[364905385,1749288638935,-440.0,0.00019178,2]
[364905388,1749288638945,-312.66864403,0.00019178,2]
[364905390,1749288638954,-420.0,0.00019178,2]
[364905391,1749288638964,-430.0,0.00019178,2]
[364905393,1749288638974,-430.0,0.00019178,2]
[364905395,1749288638983,-430.0,0.00019178,2]
[364905397,1749288638993,-518.15,0.00019178,2]
[364905399,1749288639002,-518.15,0.00019178,2]
[364905401,1749288639012,-518.15,0.00019178,2]
[364905403,1749288639022,-518.15,0.00019178,2]
[364905406,1749288639032,-518.15,0.00019178,2]
[364905407,1749288639041,-440.0,0.00019178,2]
[364905409,1749288639051,-440.0,0.00019178,2]
[364905411,1749288639060,-430.0,0.00019178,2]
[364905413,1749288639070,-440.0,0.00019178,2]
[364905415,1749288639079,-440.0,0.00019178,2]
[364905417,1749288639089,-440.0,0.00019178,2]
[364905420,1749288639099,-430.0,0.00019178,2]
[364905422,1749288639110,-440.0,0.00019178,2]
[364905424,1749288639121,-440.0,0.00019178,2]
[364905426,1749288639132,-440.0,0.00019178,2]
[364905428,1749288639143,-496.54650798,0.00019178,2]
[364905430,1749288639153,-440.0,0.00019178,2]
[364905432,1749288639162,-440.0,0.00019178,2]
[364905434,1749288639172,-430.0,0.00019178,2]
[364905436,1749288639183,-440.0,0.00019178,2]
[364905438,1749288639193,-440.0,0.00019178,2]
[364905440,1749288639203,-824.67,0.00019178,2]
[364905442,1749288639212,-440.0,0.00019178,2]
[364905444,1749288639222,-440.0,0.00019178,2]
[364905445,1749288639232,-434.56068407,0.00019178,2]
[364905446,1749288639241,-440.0,0.00019178,2]
[364905447,1749288639250,-430.35418715,0.00019178,2]
[364905448,1749288639260,-430.0,0.00019178,2]
[364905449,1749288639270,-430.0,0.00019178,2]
[364905450,1749288639280,-440.0,0.00019178,2]
[364905451,1749288639290,-440.0,0.00019178,2]
[364905452,1749288639302,-5086.69,0.00019178,2]
[364905453,1749288639311,-440.0,0.00019178,2]
[364905454,1749288639321,-430.0,0.00019178,2]
[364905455,1749288639332,-4756.79,0.00019178,2]
[364905456,1749288639343,-306.38224862,0.00019178,2]
[364905457,1749288639352,-440.0,0.00019178,2]
[364905458,1749288639362,-213.84600202,0.00019178,2]
[364905459,1749288639372,-535.1,0.00019178,2]
[364905460,1749288639383,-440.0,0.00019178,2]
[364905461,1749288639393,-430.0,0.00019178,2]
[364905463,1749288639402,-558.19976358,0.00019178,2]
[364905464,1749288639412,-440.0,0.00019178,2]
[364905466,1749288639421,-440.0,0.00019178,2]
[364905468,1749288639431,-440.0,0.00019178,2]
[364905469,1749288639440,-440.0,0.00019178,2]
[364905471,1749288639450,-430.0,0.00019178,2]
[364905473,1749288639460,-440.0,0.00019178,2]
[364905474,1749288639469,-430.0,0.00019178,2]
[364905475,1749288639480,-440.0,0.00019178,2]
[364905476,1749288639490,-440.0,0.00019178,2]
[364905477,1749288639499,-450.0,0.00019178,2]
[364905478,1749288639509,-440.0,0.00019178,2]
[364905479,1749288639518,-440.0,0.00019178,2]
[364905480,1749288639528,-440.0,0.00019178,2]
[364905481,1749288639539,-440.0,0.00019178,2]
[364905482,1749288639549,-440.0,0.00019178,2]
[364905483,1749288639559,-440.0,0.00019178,2]
[364905484,1749288639569,-440.0,0.00019178,2]
[364905485,1749288639579,-440.0,0.00019178,2]
[364905486,1749288639589,-440.0,0.00019178,2]
[364905487,1749288639717,-970.71,0.00019178,2]
[364905488,1749288639729,-440.0,0.00019178,2]
[364905489,1749288639739,-624.22,0.00019178,2]
[364905490,1749288639749,-440.0,0.00019178,2]
[364905491,1749288639759,-440.0,0.00019178,2]
[364905492,1749288639769,-440.0,0.00019178,2]
[364905493,1749288639778,-430.0,0.00019178,2]
[364905494,1749288639787,-59.4661076,0.00019178,2]
[364905496,1749288639801,-380.5338924,0.00019178,2]
[364905498,1749288639811,-440.0,0.00019178,2]
[364905499,1749288639820,-440.0,0.00019178,2]
[364905501,1749288639830,-430.0,0.00019178,2]
[364905503,1749288639839,-430.0,0.00019178,2]
[364905505,1749288639848,-440.0,0.00019178,2]
[364905506,1749288639857,-440.0,0.00019178,2]
[364905507,1749288639867,-440.0,0.00019178,2]
[364905508,1749288639877,-440.0,0.00019178,2]
[364905509,1749288639886,-440.0,0.00019178,2]
[364905510,1749288639896,-179.758447,0.00019178,2]
[364905511,1749288639906,-150.00723241,0.00019399,2]
[364905512,1749288639915,-518.15,0.00019451,2]
[364905513,1749288639925,-440.0,0.00019452,2]
[364905514,1749288639935,-229.79950307,0.00019452,2]
[364905515,1749288639945,-278.35586588,0.00019452,2]
[364905516,1749288640639,-1106.67413412,0.00019452,2]
[364905517,1749288640649,-319.44754562,0.00019452,2]
[364905518,1749288640661,-432.19075775,0.00019452,2]
[364905519,1749288640671,-440.0,0.00019452,2]
[364905520,1749288640681,-187.15555225,0.00019452,2]
[364905521,1749288640693,-252.84444775,0.00019452,2]
[364905522,1749288640703,-440.0,0.00019452,2]
[364905523,1749288640713,-440.0,0.00019452,2]
[364905524,1749288640723,-440.0,0.00019452,2]
[364905525,1749288640732,-440.0,0.00019452,2]
[364905526,1749288640742,-60.31756251,0.00019452,2]
[364905543,1749288643458,-423.89412164,0.00019178,2]
[364905544,1749288643471,-76.10587836,0.00019178,2]
[364905545,1749288643481,-500.0,0.00019178,2]
[364905546,1749288643491,-509.86243749,0.00019452,2]
[364905547,1749288643501,-440.0,0.00019452,2]
[364905548,1749288643511,-440.0,0.00019452,2]
[364905549,1749288643521,-440.0,0.00019452,2]
[364905550,1749288643531,-440.0,0.00019452,2]
[364905551,1749288643540,-226.92312321,0.00019452,2]
[364905552,1749288643553,-213.07687679,0.00019452,2]
[364905554,1749288643563,-196.17107756,0.00019452,2]
[364905556,1749288643573,-281.90204565,0.00019452,2]
[364905557,1749288643585,-158.09795435,0.00019452,2]
[364905558,1749288643595,-714.13540549,0.00019452,2]
[364905617,1749288646467,-324.65567513,0.00019178,2]
[364905618,1749288646527,-175.34432487,0.00019178,2]
[364905619,1749288646537,-155.92251113,0.00019178,2]
[364905620,1749288646549,-344.07748887,0.00019178,2]
[364905621,1749288646559,-500.0,0.00019178,2]
[364905622,1749288646569,-500.0,0.00019451,2]
[364905623,1749288646579,-500.0,0.00019451,2]
[364905624,1749288646588,-110.53459451,0.00019452,2]
[364905625,1749288646597,-440.0,0.00019452,2]
[364905626,1749288646608,-440.0,0.00019452,2]
[364905627,1749288646617,-534.95,0.00019452,2]
[364905628,1749288646627,-440.0,0.00019452,2]
[364905629,1749288646637,-1708.36540323,0.00019452,2]
[364905630,1749289169957,169.240277,0.00013699,2]
[364905634,1749289625127,-333.0,0.00018,2]
[364905635,1749289625150,-260.0,0.0001815,2]
[364905636,1749289625171,-207.96699474,0.00018151,2]
[364905637,1749289625195,-500.0,0.00018151,2]
[364905638,1749289625218,-500.0,0.00018151,2]
[364905639,1749289625240,-236.87523403,0.00018151,2]
[364905640,1749289625263,-500.0,0.00018151,2]
[364905641,1749289625286,-332.0651473,0.00018151,2]
[364905642,1749289625307,-23877.01141976,0.00018152,2]
[364905651,1749289757970,10000.0,0.00025479,120]
[364905652,1749289767932,10000.0,0.00025479,120]
[364905653,1749289776537,10000.0,0.00025479,120]
[364905654,1749289785404,10000.0,0.00025479,120]
[364905655,1749289796194,10000.0,0.00025479,120]
[364905656,1749289804046,10000.0,0.00025479,120]
[364905666,1749289812117,10000.0,0.00025479,120]
[364905671,1749289819803,10000.0,0.00025479,120]
[364905672,1749289827300,10000.0,0.00025479,120]
[364905697,1749289836532,10000.0,0.00025479,120]
[364905766,1749289838738,-1022.98858024,0.00018152,2]
[364905768,1749289838748,-2525.32,0.0001901,2]
[364905770,1749289838759,-174.78385608,0.00019078,2]
[364905772,1749289838769,-301.31518669,0.00019177,2]
[364905774,1749289838779,-440.0,0.00019178,2]
[364905776,1749289838789,-440.0,0.00019178,2]
[364905778,1749289838800,-440.0,0.00019178,2]
[364905780,1749289838810,-1269.61,0.00019178,2]
[364905782,1749289838819,-279.0,0.00019178,2]
[364905784,1749289838829,-440.0,0.00019178,2]
[364905786,1749289838839,-440.0,0.00019178,2]
[364905788,1749289838848,-508.79700729,0.00019178,2]
[364905790,1749289838858,-440.0,0.00019178,2]
[364905792,1749289838868,-440.0,0.00019178,2]
[364905794,1749289838878,-440.0,0.00019178,2]
[364905796,1749289838888,-4803.57,0.00019178,2]
[364905799,1749289838899,-938.9,0.00019178,2]
[364905801,1749289838909,-440.0,0.00019178,2]
[364905803,1749289838918,-4558.59,0.00019178,2]
[364905805,1749289838928,-704.67,0.00019178,2]
[364905807,1749289838938,-440.0,0.00019178,2]
[364905809,1749289838949,-420.0,0.00019178,2]
[364905811,1749289838961,-440.0,0.00019178,2]
[364905813,1749289838971,-440.0,0.00019178,2]
[364905815,1749289838981,-420.0,0.00019178,2]
[364905817,1749289838991,-440.0,0.00019178,2]
[364905819,1749289839001,-420.0,0.00019178,2]
[364905820,1749289839011,-440.0,0.00019178,2]
[364905822,1749289839021,-440.0,0.00019178,2]
[364905824,1749289839031,-440.0,0.00019178,2]
[364905827,1749289839042,-440.0,0.00019178,2]
[364905829,1749289839052,-440.0,0.00019178,2]
[364905831,1749289839062,-440.0,0.00019178,2]
[364905833,1749289839072,-440.0,0.00019178,2]
[364905835,1749289839082,-440.0,0.00019178,2]
[364905837,1749289839092,-593.66,0.00019178,2]
[364905839,1749289839102,-440.0,0.00019178,2]
[364905841,1749289839112,-440.0,0.00019178,2]
[364905843,1749289839121,-440.0,0.00019178,2]
[364905845,1749289839133,-440.0,0.00019178,2]
[364905847,1749289839143,-440.0,0.00019178,2]
[364905849,1749289839153,-1190.11,0.00019178,2]
[364905851,1749289839163,-440.0,0.00019178,2]
[364905853,1749289839176,-440.0,0.00019178,2]
[364905855,1749289839186,-440.0,0.00019178,2]
[364905857,1749289839195,-430.0,0.00019178,2]
[364905859,1749289839205,-430.0,0.00019178,2]
[364905861,1749289839215,-440.0,0.00019178,2]
[364905863,1749289839225,-179.758447,0.00019178,2]
[364905865,1749289839235,-440.0,0.00019452,2]
[364905867,1749289839244,-440.0,0.00019452,2]
[364905869,1749289839254,-440.0,0.00019452,2]
[364905871,1749289839263,-1269.61,0.00019452,2]
[364905873,1749289839273,-440.0,0.00019452,2]
[364905875,1749289839283,-440.0,0.00019452,2]
[364905877,1749289839293,-440.0,0.00019452,2]
[364905879,1749289839303,-440.0,0.00019452,2]
[364905881,1749289839313,-440.0,0.00019452,2]
[364905883,1749289839322,-4803.57,0.00019452,2]
[364905885,1749289839332,-938.9,0.00019452,2]
[364905887,1749289839343,-4558.59,0.00019452,2]
[364905889,1749289839352,-704.67,0.00019452,2]
[364905891,1749289839362,-440.0,0.00019452,2]
[364905893,1749289839372,-440.0,0.00019452,2]
[364905895,1749289839384,-440.0,0.00019452,2]
[364905897,1749289839394,-430.0,0.00019452,2]
[364905899,1749289839403,-440.0,0.00019452,2]
[364905901,1749289839413,-440.0,0.00019452,2]
[364905903,1749289839422,-440.0,0.00019452,2]
[364905905,1749289839432,-593.66,0.00019452,2]
[364905907,1749289839442,-440.0,0.00019452,2]
[364905909,1749289839451,-440.0,0.00019452,2]
[364905911,1749289839461,-440.0,0.00019452,2]
[364905913,1749289839471,-440.0,0.00019452,2]
[364905915,1749289839480,-1190.11,0.00019452,2]
[364905917,1749289839490,-440.0,0.00019452,2]
[364905919,1749289839500,-440.0,0.00019452,2]
[364905921,1749289839510,-207.4,0.00019554,2]
[364905923,1749289839522,-500.0,0.00019554,2]
[364905925,1749289839532,-500.0,0.00019554,2]
[364905927,1749289839541,-500.0,0.00019554,2]
[364905929,1749289839551,-500.0,0.00019554,2]
[364905931,1749289839561,-500.0,0.00019554,2]
[364905933,1749289839571,-500.0,0.00019554,2]
[364905935,1749289839581,-500.0,0.00019554,2]
[364905937,1749289839590,-500.0,0.00019554,2]
[364905939,1749289839600,-500.0,0.00019554,2]
[364905941,1749289839610,-500.0,0.00019554,2]
[364905943,1749289839620,-440.0,0.00019726,2]
[364905945,1749289839630,-440.0,0.00019726,2]
[364905947,1749289839639,-442.04833899,0.00019726,2]
[364905949,1749289839649,-1269.61,0.00019726,2]
[364905951,1749289839660,-440.0,0.00019726,2]
[364905953,1749289839669,-239.35107111,0.00019726,2]
[364905955,1749289839679,-440.0,0.00019726,2]
[364905957,1749289839689,-440.0,0.00019726,2]
[364905959,1749289839698,-440.0,0.00019726,2]
[364905961,1749289839708,-4803.57,0.00019726,2]
[364905963,1749289839717,-938.9,0.00019726,2]
[364905965,1749289839727,-4558.59,0.00019726,2]
[364905967,1749289839736,-704.67,0.00019726,2]
[364905969,1749289839747,-440.0,0.00019726,2]
[364905971,1749289839756,-440.0,0.00019726,2]
[364905973,1749289839766,-440.0,0.00019726,2]
[364905975,1749289839776,-440.0,0.00019726,2]
[364905977,1749289839786,-440.0,0.00019726,2]
[364905979,1749289839795,-440.0,0.00019726,2]
[364905981,1749289839805,-593.66,0.00019726,2]
[364905983,1749289839815,-440.0,0.00019726,2]
[364905985,1749289839824,-440.0,0.00019726,2]
[364905987,1749289839834,-440.0,0.00019726,2]
[364905989,1749289839844,-440.0,0.00019726,2]
[364905991,1749289839853,-1190.11,0.00019726,2]
[364905993,1749289839863,-440.0,0.00019726,2]
[364905995,1749289839874,-440.0,0.00019726,2]
[364905997,1749289839885,-908.41026,0.00019867,2]
[364905999,1749289839895,-256.58144634,0.00019933,2]
[364906001,1749289839905,-440.0,0.0002,2]
[364906003,1749289839916,-440.0,0.0002,2]
[364906005,1749289839926,-1269.61,0.0002,2]
[364906007,1749289839936,-440.0,0.0002,2]
[364906009,1749289839946,-538.29,0.0002,2]
[364906011,1749289839956,-344.82288595,0.0002,2]
[364906013,1749289839970,-440.0,0.0002,2]
[364906016,1749289839981,-4803.57,0.0002,2]
[364906019,1749289839992,-938.9,0.0002,2]
[364906021,1749289840001,-4558.59,0.0002,2]
[364906023,1749289840010,-704.67,0.0002,2]
[364906025,1749289840020,-440.0,0.0002,2]
[364906027,1749289840030,-440.0,0.0002,2]
[364906029,1749289840039,-440.0,0.0002,2]
[364906031,1749289840049,-245.90021083,0.0002,2]
[364906033,1749289840058,-440.0,0.0002,2]
[364906035,1749289840067,-440.0,0.0002,2]
[364906038,1749289840089,-593.66,0.0002,2]
[364906040,1749289840100,-440.0,0.0002,2]
[364906043,1749289840110,-440.0,0.0002,2]
[364906045,1749289840120,-440.0,0.0002,2]
[364906047,1749289840132,-440.0,0.0002,2]
[364906049,1749289840142,-1190.11,0.0002,2]
[364906051,1749289840152,-440.0,0.0002,2]
[364906053,1749289840162,-440.0,0.0002,2]
[364906072,1749289840331,-258.4,0.00020074,2]
[364906074,1749289840352,-189.92,0.00020104,2]
[364906076,1749289840371,-423.90693687,0.00020139,2]
[364906078,1749289840382,-160.0,0.00020139,2]
[364906081,1749289840392,-160.0,0.00020139,2]
[364906083,1749289840402,-160.0,0.00020139,2]
[364906084,1749289840412,-160.0,0.00020139,2]
[364906087,1749289840422,-842.5625,0.00020139,2]
[364906089,1749289840431,-160.0,0.00020139,2]
[364906090,1749289840441,-258.4,0.0002017,2]
[364906092,1749289840451,-169.240277,0.00020187,2]
[364906094,1749289840461,-461.15,0.00020263,3]
[364906096,1749289840470,-230.57,0.00020263,3]
[364906098,1749289840480,-691.76,0.00020263,3]
[364906100,1749289840489,-213.01382694,0.00020272,2]
[364906102,1749289840500,-834.52263295,0.00020272,2]
[364906104,1749289840510,-151.0,0.00020273,2]
[364906106,1749289840520,-151.0,0.00020273,2]
[364906108,1749289840529,-151.0,0.00020273,2]
[364906110,1749289840539,-151.0,0.00020273,2]
[364906112,1749289840549,-264.382389,0.00020273,2]
[364906114,1749289840558,-264.382389,0.00020273,2]
[364906116,1749289840568,-151.0,0.00020273,2]
[364906118,1749289840577,-151.0,0.00020273,2]
[364906120,1749289840586,-440.0,0.00020273,2]
[364906122,1749289840596,-440.0,0.00020273,2]
[364906124,1749289840605,-1269.61,0.00020273,2]
[364906126,1749289840615,-243.897276,0.00020273,2]
[364906128,1749289840625,-517.98,0.00020273,2]
[364906130,1749289840635,-151.0,0.00020273,2]
[364906132,1749289840645,-151.0,0.00020273,2]
[364906135,1749289840659,-440.0,0.00020273,2]
[364906137,1749289840669,-4803.57,0.00020273,2]
[364906139,1749289840679,-938.9,0.00020273,2]
[364906141,1749289840689,-153.214502,0.00020273,2]
[364906143,1749289840699,-153.214502,0.00020273,2]
[364906145,1749289840709,-4558.59,0.00020273,2]
[364906147,1749289840719,-704.67,0.00020273,2]
[364906149,1749289840729,-440.0,0.00020273,2]
[364906151,1749289840740,-440.0,0.00020273,2]
[364906153,1749289840750,-440.0,0.00020273,2]
[364906155,1749289840760,-440.0,0.00020273,2]
[364906157,1749289840770,-440.0,0.00020273,2]
[364906159,1749289840780,-593.66,0.00020273,2]
[364906161,1749289840790,-545.66,0.00020273,2]
[364906163,1749289840801,-440.0,0.00020273,2]
[364906165,1749289840811,-440.0,0.00020273,2]
[364906167,1749289840822,-440.0,0.00020273,2]
[364906170,1749289840832,-1190.11,0.00020273,2]
[364906171,1749289840843,-440.0,0.00020273,2]
[364906174,1749289840854,-440.0,0.00020273,2]
[364906176,1749289840864,-151.0,0.00020273,2]
[364906178,1749289840874,-151.0,0.00020417,2]
[364906180,1749289840885,-151.0,0.00020417,2]
[364906182,1749289840895,-151.0,0.00020417,2]
[364906184,1749289840906,-164.688244,0.00020417,2]
[364906186,1749289840916,-275.114239,0.00020417,2]
[364906188,1749289840926,-275.114239,0.00020417,2]
[364906190,1749289840935,-1234.89006392,0.00020447,2]
[364906192,1749289840945,-329.71,0.00020537,3]
[364906194,1749289840955,-164.85,0.00020537,3]
[364906196,1749289840969,-494.59,0.00020537,3]
[364906198,1749289840979,-440.0,0.00020547,2]
[364906200,1749289840989,-440.0,0.00020547,2]
[364906201,1749289840999,-1269.61,0.00020547,2]
[364906202,1749289841010,-440.0,0.00020547,2]
[364906203,1749289841019,-4803.57,0.00020547,2]
[364906204,1749289841030,-938.9,0.00020547,2]
[364906205,1749289841040,-4558.59,0.00020547,2]
[364906206,1749289841050,-704.67,0.00020547,2]
[364906207,1749289841060,-440.0,0.00020547,2]